[Event "Titled Tuesday Blitz October 31 Early 2023"]
[White "Nurmanova, Alua"]
[Black "Ashraf, Artin"]
[WhiteFideId "13729390"]
[BlackFideId "22514805"]
[WhiteElo "2659"]
[BlackElo "2841"]
[Result "0-1"]
[Round "6"]
[TimeControl "180+1"]
[Date "2023.10.31"]
[WhiteClock "0:00:03"]
[BlackClock "0:00:51"]
[Board "26"]

1. e4 {[%clk 0:03:00]}  c5 {[%clk 0:02:55]} 2. Nf3 {[%clk 0:02:56]}  d6 {[%clk 0:02:55]} 3. d4 {[%clk 0:02:56]}  cxd4 {[%clk 0:02:56]} 4. Nxd4 {[%clk 0:02:57]}  Nf6 {[%clk 0:02:56]} 5. Nc3 {[%clk 0:02:57]}  a6 {[%clk 0:02:57]} 6. Bg5 {[%clk 0:02:49]}  Nc6 {[%clk 0:02:57]} 7. Bc4 {[%clk 0:02:35]}  e6 {[%clk 0:02:52]} 8. Qd2 {[%clk 0:02:14]}  Bd7 {[%clk 0:02:50]} 9. O-O-O {[%clk 0:02:13]}  Rc8 {[%clk 0:02:50]} 10. Bb3 {[%clk 0:02:13]}  Na5 {[%clk 0:02:42]} 11. Kb1 {[%clk 0:02:08]}  h6 {[%clk 0:02:37]} 12. Bxf6 {[%clk 0:02:01]}  Qxf6 {[%clk 0:02:37]} 13. f4 {[%clk 0:02:01]}  Qd8 {[%clk 0:02:29]} 14. f5 {[%clk 0:01:58]}  e5 {[%clk 0:02:28]} 15. Nf3 {[%clk 0:01:52]}  b5 {[%clk 0:02:21]} 16. Nd5 {[%clk 0:01:45]}  Bc6 {[%clk 0:02:20]} 17. Rhf1 {[%clk 0:01:33]}  Be7 {[%clk 0:02:17]} 18. Nxe7 {[%clk 0:01:30]}  Kxe7 {[%clk 0:02:14]} 19. Nxe5 {[%clk 0:01:28]}  Nxb3 {[%clk 0:01:59]} 20. axb3 {[%clk 0:01:14]}  Bxe4 {[%clk 0:01:59]} 21. Nd3 {[%clk 0:01:05]}  d5 {[%clk 0:01:36]} 22. Qf4 {[%clk 0:00:50]}  Qd6 {[%clk 0:01:32]} 23. Qg4 {[%clk 0:00:39]}  Qf6 {[%clk 0:01:26]} 24. b4 {[%clk 0:00:38]}  Rc4 {[%clk 0:01:23]} 25. Qg3 {[%clk 0:00:34]}  Rhc8 {[%clk 0:01:22]} 26. Rf2 {[%clk 0:00:25]}  Kf8 {[%clk 0:01:20]} 27. Qe3 {[%clk 0:00:22]}  d4 {[%clk 0:01:15]} 28. Qxe4 {[%clk 0:00:21]}  Qd6 {[%clk 0:01:08]} 29. g4 {[%clk 0:00:21]}  Re8 {[%clk 0:01:07]} 30. Qf3 {[%clk 0:00:20]}  a5 {[%clk 0:01:07]} 31. bxa5 {[%clk 0:00:19]}  Qa6 {[%clk 0:00:57]} 32. f6 {[%clk 0:00:19]}  g5 {[%clk 0:00:55]} 33. Qf5 {[%clk 0:00:18]}  Kg8 {[%clk 0:00:55]} 34. h4 {[%clk 0:00:17]}  Qxa5 {[%clk 0:00:51]} 35. hxg5 {[%clk 0:00:12]}  Ra4 {[%clk 0:00:51]} 36. b4 {[%clk 0:00:03]}  Ra1+ {[%clk 0:00:50]} 37. Kb2 {[%clk 0:00:03]}  Qa3# {[%clk 0:00:51]} 0-1


[Site "https://www.chess.com"]

[Event "Titled Tuesday Blitz October 31 Early 2023"]
[White "Mikaelyan, Arman"]
[Black "Kleiman, Jake"]
[WhiteFideId "13304852"]
[BlackFideId "2020041"]
[WhiteElo "2908"]
[BlackElo "2671"]
[Result "0-1"]
[Round "6"]
[TimeControl "180+1"]
[Date "2023.10.31"]
[WhiteClock "0:00:08"]
[BlackClock "0:00:27"]
[Board "29"]

1. d4 {[%clk 0:03:00]}  Nf6 {[%clk 0:02:59]} 2. Nf3 {[%clk 0:03:01]}  e6 {[%clk 0:03:00]} 3. c4 {[%clk 0:03:02]}  Bb4+ {[%clk 0:03:01]} 4. Nbd2 {[%clk 0:03:00]}  O-O {[%clk 0:03:00]} 5. a3 {[%clk 0:03:00]}  Be7 {[%clk 0:03:00]} 6. e3 {[%clk 0:02:56]}  d5 {[%clk 0:03:00]} 7. b3 {[%clk 0:02:57]}  c5 {[%clk 0:03:01]} 8. Bb2 {[%clk 0:02:57]}  b6 {[%clk 0:03:01]} 9. Bd3 {[%clk 0:02:54]}  Bb7 {[%clk 0:02:59]} 10. O-O {[%clk 0:02:53]}  cxd4 {[%clk 0:03:00]} 11. exd4 {[%clk 0:02:53]}  dxc4 {[%clk 0:03:00]} 12. bxc4 {[%clk 0:02:53]}  Nc6 {[%clk 0:03:00]} 13. Qe2 {[%clk 0:02:52]}  Rc8 {[%clk 0:03:00]} 14. Rad1 {[%clk 0:02:53]}  Re8 {[%clk 0:02:57]} 15. Rfe1 {[%clk 0:02:52]}  Bf8 {[%clk 0:02:57]} 16. Ne4 {[%clk 0:02:46]}  Be7 {[%clk 0:02:49]} 17. Nxf6+ {[%clk 0:01:48]}  Bxf6 {[%clk 0:02:49]} 18. Qe4 {[%clk 0:01:49]}  g6 {[%clk 0:02:43]} 19. Qf4 {[%clk 0:01:45]}  Bg7 {[%clk 0:02:22]} 20. Ng5 {[%clk 0:01:20]}  Qf6 {[%clk 0:02:08]} 21. Qg3 {[%clk 0:01:18]}  Na5 {[%clk 0:01:49]} 22. Ba1 {[%clk 0:01:09]}  Qd8 {[%clk 0:01:39]} 23. d5 {[%clk 0:01:03]}  exd5 {[%clk 0:01:27]} 24. Bxg7 {[%clk 0:00:49]}  Kxg7 {[%clk 0:01:21]} 25. Qh4 {[%clk 0:00:49]}  h6 {[%clk 0:01:04]} 26. Qd4+ {[%clk 0:00:48]}  Qf6 {[%clk 0:00:58]} 27. Nf3 {[%clk 0:00:20]}  dxc4 {[%clk 0:00:53]} 28. Bb1 {[%clk 0:00:17]}  Bxf3 {[%clk 0:00:44]} 29. Qxf6+ {[%clk 0:00:13]}  Kxf6 {[%clk 0:00:45]} 30. gxf3 {[%clk 0:00:14]}  Rxe1+ {[%clk 0:00:41]} 31. Rxe1 {[%clk 0:00:15]}  c3 {[%clk 0:00:41]} 32. Bc2 {[%clk 0:00:15]}  Nc4 {[%clk 0:00:40]} 33. Ra1 {[%clk 0:00:16]}  Rd8 {[%clk 0:00:35]} 34. Bb3 {[%clk 0:00:15]}  Na5 {[%clk 0:00:32]} 35. Ba4 {[%clk 0:00:15]}  Rd4 {[%clk 0:00:30]} 36. Bb5 {[%clk 0:00:11]}  c2 {[%clk 0:00:28]} 37. Be2 {[%clk 0:00:08]}  Nb3 {[%clk 0:00:27]} 0-1


[Site "https://www.chess.com"]

[Event "Titled Tuesday Blitz October 31 Early 2023"]
[White "Janaszak, Dawid"]
[Black "Rustemov, Alexander"]
[WhiteFideId "1119206"]
[BlackFideId "4119002"]
[WhiteElo "2666"]
[BlackElo "2892"]
[Result "1/2-1/2"]
[Round "6"]
[TimeControl "180+1"]
[Date "2023.10.31"]
[WhiteClock "0:00:37"]
[BlackClock "0:00:28"]
[Board "31"]

1. c4 {[%clk 0:03:00]}  c5 {[%clk 0:02:59]} 2. Nf3 {[%clk 0:03:00]}  g6 {[%clk 0:02:59]} 3. e4 {[%clk 0:03:00]}  Bg7 {[%clk 0:02:58]} 4. d4 {[%clk 0:03:00]}  Qa5+ {[%clk 0:02:58]} 5. Bd2 {[%clk 0:02:54]}  Qb6 {[%clk 0:02:58]} 6. Bc3 {[%clk 0:02:55]}  cxd4 {[%clk 0:02:57]} 7. Bxd4 {[%clk 0:02:47]}  Bxd4 {[%clk 0:02:57]} 8. Qxd4 {[%clk 0:02:47]}  Qxd4 {[%clk 0:02:57]} 9. Nxd4 {[%clk 0:02:48]}  d6 {[%clk 0:02:57]} 10. Nc3 {[%clk 0:02:48]}  Nf6 {[%clk 0:02:57]} 11. f3 {[%clk 0:02:44]}  Nc6 {[%clk 0:02:54]} 12. O-O-O {[%clk 0:02:43]}  Nxd4 {[%clk 0:02:48]} 13. Rxd4 {[%clk 0:02:42]}  Be6 {[%clk 0:02:48]} 14. b3 {[%clk 0:02:39]}  Rc8 {[%clk 0:02:46]} 15. Kb2 {[%clk 0:02:39]}  a6 {[%clk 0:02:38]} 16. Be2 {[%clk 0:02:24]}  O-O {[%clk 0:02:31]} 17. a4 {[%clk 0:02:23]}  a5 {[%clk 0:02:29]} 18. Rhd1 {[%clk 0:02:16]}  Nd7 {[%clk 0:02:27]} 19. g3 {[%clk 0:02:11]}  Nc5 {[%clk 0:02:25]} 20. f4 {[%clk 0:02:10]}  Kg7 {[%clk 0:02:17]} 21. Bf3 {[%clk 0:02:09]}  b6 {[%clk 0:02:09]} 22. R4d2 {[%clk 0:02:07]}  f6 {[%clk 0:02:03]} 23. Nb5 {[%clk 0:02:07]}  Rfd8 {[%clk 0:01:59]} 24. Na7 {[%clk 0:01:56]}  Rc7 {[%clk 0:01:56]} 25. Nb5 {[%clk 0:01:56]}  Rcd7 {[%clk 0:01:54]} 26. Nd4 {[%clk 0:01:53]}  Bf7 {[%clk 0:01:51]} 27. Kc3 {[%clk 0:01:51]}  Kf8 {[%clk 0:01:48]} 28. Bg4 {[%clk 0:01:50]}  Rc7 {[%clk 0:01:45]} 29. Bf3 {[%clk 0:01:50]}  Rcd7 {[%clk 0:01:45]} 30. Nc6 {[%clk 0:01:47]}  Rc8 {[%clk 0:01:43]} 31. Nd4 {[%clk 0:01:48]}  Rdd8 {[%clk 0:01:35]} 32. Re1 {[%clk 0:01:47]}  e5 {[%clk 0:01:31]} 33. Nb5 {[%clk 0:01:45]}  Ke7 {[%clk 0:01:31]} 34. Red1 {[%clk 0:01:41]}  Nb7 {[%clk 0:01:27]} 35. h4 {[%clk 0:01:35]}  Be6 {[%clk 0:01:25]} 36. Na7 {[%clk 0:01:33]}  Rc7 {[%clk 0:01:21]} 37. Nb5 {[%clk 0:01:32]}  Rc5 {[%clk 0:01:19]} 38. Kb2 {[%clk 0:01:27]}  h6 {[%clk 0:01:18]} 39. Nc3 {[%clk 0:01:21]}  Rc7 {[%clk 0:01:15]} 40. Nb5 {[%clk 0:01:18]}  Rcd7 {[%clk 0:01:13]} 41. Na7 {[%clk 0:01:13]}  Kf8 {[%clk 0:01:04]} 42. Nb5 {[%clk 0:01:13]}  Ke7 {[%clk 0:00:58]} 43. Na7 {[%clk 0:01:12]}  Rc7 {[%clk 0:00:57]} 44. Nb5 {[%clk 0:01:10]}  Rc6 {[%clk 0:00:57]} 45. h5 {[%clk 0:01:02]}  g5 {[%clk 0:00:57]} 46. f5 {[%clk 0:00:58]}  Bf7 {[%clk 0:00:56]} 47. g4 {[%clk 0:00:56]}  Nc5 {[%clk 0:00:54]} 48. Na7 {[%clk 0:00:54]}  Rc7 {[%clk 0:00:54]} 49. Nb5 {[%clk 0:00:55]}  Rcd7 {[%clk 0:00:55]} 50. Nc3 {[%clk 0:00:53]}  Na6 {[%clk 0:00:48]} 51. Na2 {[%clk 0:00:49]}  Rc7 {[%clk 0:00:45]} 52. Nc3 {[%clk 0:00:49]}  Nb4 {[%clk 0:00:42]} 53. Nb5 {[%clk 0:00:47]}  Rcd7 {[%clk 0:00:42]} 54. Nc3 {[%clk 0:00:45]}  Nc6 {[%clk 0:00:41]} 55. Nb5 {[%clk 0:00:44]}  Nb4 {[%clk 0:00:37]} 56. Bg2 {[%clk 0:00:43]}  Na6 {[%clk 0:00:34]} 57. Bf3 {[%clk 0:00:43]}  Nc5 {[%clk 0:00:32]} 58. Bg2 {[%clk 0:00:43]}  Nb7 {[%clk 0:00:32]} 59. Bf3 {[%clk 0:00:43]}  Kf8 {[%clk 0:00:32]} 60. Bg2 {[%clk 0:00:42]}  Be8 {[%clk 0:00:31]} 61. Nc3 {[%clk 0:00:41]}  Bf7 {[%clk 0:00:30]} 62. Nb5 {[%clk 0:00:41]}  Ke7 {[%clk 0:00:30]} 63. Na7 {[%clk 0:00:39]}  Rc7 {[%clk 0:00:29]} 64. Nb5 {[%clk 0:00:39]}  Rc6 {[%clk 0:00:29]} 65. Bf3 {[%clk 0:00:38]}  Nc5 {[%clk 0:00:28]} 66. Na7 {[%clk 0:00:36]}  Rc7 {[%clk 0:00:28]} 67. Nb5 {[%clk 0:00:37]}  Rcd7 {[%clk 0:00:28]} 1/2-1/2


[Site "https://www.chess.com"]

[Event "Titled Tuesday Blitz October 31 Early 2023"]
[White "Hambleton, Aman"]
[Black "Shubenkova, Veronika"]
[WhiteFideId "2606577"]
[BlackFideId "44124040"]
[WhiteElo "2794"]
[BlackElo "2546"]
[Result "1-0"]
[Round "6"]
[TimeControl "180+1"]
[Date "2023.10.31"]
[WhiteClock "0:00:03"]
[BlackClock "0:00:00"]
[Board "36"]

1. d4 {[%clk 0:02:59]}  d5 {[%clk 0:03:00]} 2. Bf4 {[%clk 0:02:56]}  e6 {[%clk 0:03:00]} 3. e3 {[%clk 0:02:56]}  Bd6 {[%clk 0:03:00]} 4. Nf3 {[%clk 0:02:54]}  Nf6 {[%clk 0:02:59]} 5. Nbd2 {[%clk 0:02:53]}  O-O {[%clk 0:02:59]} 6. Bd3 {[%clk 0:02:53]}  Nbd7 {[%clk 0:02:59]} 7. O-O {[%clk 0:02:51]}  Re8 {[%clk 0:02:59]} 8. Ne5 {[%clk 0:02:52]}  Nf8 {[%clk 0:02:58]} 9. c3 {[%clk 0:02:46]}  N6d7 {[%clk 0:02:58]} 10. Qh5 {[%clk 0:02:40]}  Nxe5 {[%clk 0:02:32]} 11. dxe5 {[%clk 0:02:34]}  Be7 {[%clk 0:02:32]} 12. Nf3 {[%clk 0:02:31]}  c6 {[%clk 0:02:23]} 13. Rad1 {[%clk 0:02:27]}  Bd7 {[%clk 0:02:22]} 14. e4 {[%clk 0:02:22]}  Ng6 {[%clk 0:02:13]} 15. Bg5 {[%clk 0:02:00]}  Bxg5 {[%clk 0:01:44]} 16. Nxg5 {[%clk 0:01:59]}  h6 {[%clk 0:01:44]} 17. Nf3 {[%clk 0:00:57]}  Nf4 {[%clk 0:01:43]} 18. Qg4 {[%clk 0:00:57]}  Nxd3 {[%clk 0:01:43]} 19. Rxd3 {[%clk 0:00:58]}  Qe7 {[%clk 0:01:41]} 20. Re1 {[%clk 0:00:50]}  Rad8 {[%clk 0:01:40]} 21. h4 {[%clk 0:00:48]}  Rf8 {[%clk 0:01:38]} 22. b4 {[%clk 0:00:29]}  Bc8 {[%clk 0:01:38]} 23. Nd4 {[%clk 0:00:29]}  f6 {[%clk 0:01:13]} 24. exf6 {[%clk 0:00:21]}  Qxf6 {[%clk 0:01:13]} 25. Rf3 {[%clk 0:00:22]}  Qe5 {[%clk 0:01:05]} 26. Ree3 {[%clk 0:00:16]}  Rxf3 {[%clk 0:01:00]} 27. Nxf3 {[%clk 0:00:17]}  Qc7 {[%clk 0:00:45]} 28. e5 {[%clk 0:00:17]}  c5 {[%clk 0:00:45]} 29. bxc5 {[%clk 0:00:17]}  Qxc5 {[%clk 0:00:45]} 30. Nd4 {[%clk 0:00:17]}  Qb6 {[%clk 0:00:45]} 31. Rg3 {[%clk 0:00:13]}  Rd7 {[%clk 0:00:25]} 32. Kh2 {[%clk 0:00:03]}  Rf7 {[%clk 0:00:23]} 33. h5 {[%clk 0:00:02]}  Qc7 {[%clk 0:00:22]} 34. f4 {[%clk 0:00:02]}  Qe7 {[%clk 0:00:20]} 35. Rf3 {[%clk 0:00:02]}  a5 {[%clk 0:00:19]} 36. Kh3 {[%clk 0:00:02]}  a4 {[%clk 0:00:19]} 37. Qh4 {[%clk 0:00:01]}  Qxh4+ {[%clk 0:00:17]} 38. Kxh4 {[%clk 0:00:02]}  Kh7 {[%clk 0:00:17]} 39. g4 {[%clk 0:00:02]}  g6 {[%clk 0:00:17]} 40. hxg6+ {[%clk 0:00:03]}  Kxg6 {[%clk 0:00:17]} 41. Rf2 {[%clk 0:00:03]}  Rc7 {[%clk 0:00:15]} 42. f5+ {[%clk 0:00:02]}  exf5 {[%clk 0:00:16]} 43. gxf5+ {[%clk 0:00:03]}  Kf7 {[%clk 0:00:15]} 44. Rf3 {[%clk 0:00:03]}  Rc4 {[%clk 0:00:14]} 45. a3 {[%clk 0:00:03]}  b5 {[%clk 0:00:09]} 46. Kh5 {[%clk 0:00:03]}  b4 {[%clk 0:00:10]} 47. axb4 {[%clk 0:00:03]}  a3 {[%clk 0:00:10]} 48. Nb5 {[%clk 0:00:02]}  a2 {[%clk 0:00:10]} 49. Nd6+ {[%clk 0:00:01]}  Kf8 {[%clk 0:00:10]} 50. Rf1 {[%clk 0:00:01]}  Rxc3 {[%clk 0:00:10]} 51. Ra1 {[%clk 0:00:01]}  Rh3+ {[%clk 0:00:07]} 52. Kg4 {[%clk 0:00:02]}  Rc3 {[%clk 0:00:06]} 53. Rxa2 {[%clk 0:00:02]}  d4 {[%clk 0:00:03]} 54. Ra8 {[%clk 0:00:02]}  d3 {[%clk 0:00:03]} 55. Kf3 {[%clk 0:00:02]}  d2+ {[%clk 0:00:02]} 56. Ke2 {[%clk 0:00:03]}  Rc2 {[%clk 0:00:00]} 57. Rxc8+ {[%clk 0:00:03]} 1-0


[Site "https://www.chess.com"]

[Event "Titled Tuesday Blitz October 31 Early 2023"]
[White "Csonka, Balazs"]
[Black "Tologon tegin, Semetei"]
[WhiteFideId "742910"]
[BlackFideId "13800574"]
[WhiteElo "2726"]
[BlackElo "2537"]
[Result "1-0"]
[Round "6"]
[TimeControl "180+1"]
[Date "2023.10.31"]
[WhiteClock "0:00:31"]
[BlackClock "0:01:28"]
[Board "38"]

1. Nf3 {[%clk 0:03:00]}  Nc6 {[%clk 0:02:54]} 2. e4 {[%clk 0:02:56]}  d5 {[%clk 0:02:54]} 3. exd5 {[%clk 0:02:51]}  Qxd5 {[%clk 0:02:54]} 4. Nc3 {[%clk 0:02:45]}  Qh5 {[%clk 0:02:38]} 5. Be2 {[%clk 0:02:34]}  e5 {[%clk 0:02:35]} 6. O-O {[%clk 0:02:26]}  Nf6 {[%clk 0:02:32]} 7. d4 {[%clk 0:02:20]}  exd4 {[%clk 0:02:26]} 8. Nxd4 {[%clk 0:02:15]}  Bg4 {[%clk 0:02:25]} 9. Nxc6 {[%clk 0:02:04]}  bxc6 {[%clk 0:02:26]} 10. Bxg4 {[%clk 0:01:51]}  Qxg4 {[%clk 0:02:27]} 11. Re1+ {[%clk 0:01:44]}  Be7 {[%clk 0:02:27]} 12. Qxg4 {[%clk 0:01:37]}  Nxg4 {[%clk 0:02:28]} 13. Bf4 {[%clk 0:01:35]}  Kd7 {[%clk 0:01:58]} 14. h3 {[%clk 0:00:54]}  Nf6 {[%clk 0:01:56]} 15. Bxc7 {[%clk 0:00:52]}  Rhe8 {[%clk 0:01:39]} 16. Be5 {[%clk 0:00:42]}  Bb4 {[%clk 0:01:30]} 17. Rad1+ {[%clk 0:00:31]}  Kc8 {[%clk 0:01:30]} 18. Bxf6 {[%clk 0:00:31]}  Rxe1+ {[%clk 0:01:30]} 19. Rxe1 {[%clk 0:00:32]}  g6 {[%clk 0:01:28]} 20. Re8+ {[%clk 0:00:31]} 1-0


[Site "https://www.chess.com"]

[Event "Titled Tuesday Blitz October 31 Early 2023"]
[White "Szpar, Milosz"]
[Black "Shapiro, Viktor"]
[WhiteFideId "1184989"]
[BlackFideId "4175700"]
[WhiteElo "2720"]
[BlackElo "2514"]
[Result "0-1"]
[Round "6"]
[TimeControl "180+1"]
[Date "2023.10.31"]
[WhiteClock "0:00:00"]
[BlackClock "0:00:02"]
[Board "39"]

1. Nf3 {[%clk 0:02:57]}  Nf6 {[%clk 0:03:00]} 2. c4 {[%clk 0:02:56]}  c5 {[%clk 0:03:01]} 3. Nc3 {[%clk 0:02:55]}  Nc6 {[%clk 0:03:01]} 4. e3 {[%clk 0:02:54]}  g6 {[%clk 0:03:01]} 5. d4 {[%clk 0:02:54]}  Bg7 {[%clk 0:03:02]} 6. d5 {[%clk 0:02:54]}  Na5 {[%clk 0:03:03]} 7. Rb1 {[%clk 0:02:43]}  O-O {[%clk 0:02:59]} 8. a3 {[%clk 0:02:42]}  b6 {[%clk 0:02:38]} 9. b4 {[%clk 0:02:42]}  Nb7 {[%clk 0:02:38]} 10. Be2 {[%clk 0:02:41]}  d6 {[%clk 0:02:37]} 11. O-O {[%clk 0:02:29]}  Bf5 {[%clk 0:02:37]} 12. Rb3 {[%clk 0:02:29]}  cxb4 {[%clk 0:02:37]} 13. axb4 {[%clk 0:02:29]}  a5 {[%clk 0:02:23]} 14. Nd4 {[%clk 0:02:29]}  axb4 {[%clk 0:02:15]} 15. Rxb4 {[%clk 0:02:29]}  Nc5 {[%clk 0:02:13]} 16. Nc6 {[%clk 0:02:22]}  Qd7 {[%clk 0:02:09]} 17. Rxb6 {[%clk 0:02:14]}  Nfe4 {[%clk 0:02:09]} 18. Nxe4 {[%clk 0:02:08]}  Nxe4 {[%clk 0:02:09]} 19. Bb2 {[%clk 0:02:07]}  Bxb2 {[%clk 0:01:23]} 20. Rxb2 {[%clk 0:02:07]}  e5 {[%clk 0:01:20]} 21. Qc1 {[%clk 0:02:01]}  Nc5 {[%clk 0:01:15]} 22. f3 {[%clk 0:01:54]}  Bd3 {[%clk 0:01:14]} 23. Qd2 {[%clk 0:01:49]}  Ra3 {[%clk 0:01:11]} 24. e4 {[%clk 0:01:37]}  Rfa8 {[%clk 0:01:06]} 25. Bxd3 {[%clk 0:01:35]}  Rxd3 {[%clk 0:01:06]} 26. Qh6 {[%clk 0:01:31]}  Rda3 {[%clk 0:01:00]} 27. Rfb1 {[%clk 0:01:30]}  Ra1 {[%clk 0:00:57]} 28. Rb8+ {[%clk 0:01:17]}  Rxb8 {[%clk 0:00:56]} 29. Rxa1 {[%clk 0:01:17]}  Re8 {[%clk 0:00:38]} 30. Ra7 {[%clk 0:01:16]}  Nb7 {[%clk 0:00:38]} 31. Qd2 {[%clk 0:00:58]}  Qc8 {[%clk 0:00:26]} 32. Qb4 {[%clk 0:00:55]}  Nc5 {[%clk 0:00:26]} 33. Ne7+ {[%clk 0:00:51]}  Rxe7 {[%clk 0:00:26]} 34. Rxe7 {[%clk 0:00:51]}  Qa8 {[%clk 0:00:27]} 35. Qb2 {[%clk 0:00:40]}  Kf8 {[%clk 0:00:22]} 36. Rc7 {[%clk 0:00:38]}  Qa5 {[%clk 0:00:22]} 37. Rc8+ {[%clk 0:00:33]}  Kg7 {[%clk 0:00:23]} 38. h3 {[%clk 0:00:20]}  Qe1+ {[%clk 0:00:19]} 39. Kh2 {[%clk 0:00:20]}  Nd3 {[%clk 0:00:18]} 40. Qb8 {[%clk 0:00:19]}  Nf4 {[%clk 0:00:09]} 41. Rg8+ {[%clk 0:00:19]}  Kh6 {[%clk 0:00:09]} 42. Qf8+ {[%clk 0:00:19]}  Kg5 {[%clk 0:00:08]} 43. Qxf7 {[%clk 0:00:15]}  Qf2 {[%clk 0:00:06]} 44. Qf5+ {[%clk 0:00:07]}  Kh6 {[%clk 0:00:04]} 45. Qg4 {[%clk 0:00:07]}  Ne2 {[%clk 0:00:02]} 46. Qg3 {[%clk 0:00:00]}  Qxg3+ {[%clk 0:00:02]} 0-1


[Site "https://www.chess.com"]

[Event "Titled Tuesday Blitz October 31 Early 2023"]
[White "Ronka, Erik"]
[Black "Paravyan, David"]
[WhiteFideId "505080"]
[BlackFideId "4194985"]
[WhiteElo "2533"]
[BlackElo "3065"]
[Result "0-1"]
[Round "6"]
[TimeControl "180+1"]
[Date "2023.10.31"]
[WhiteClock "0:00:05"]
[BlackClock "0:01:48"]
[Board "41"]

1. e4 {[%clk 0:03:00]}  e5 {[%clk 0:02:59]} 2. Nf3 {[%clk 0:03:01]}  Nf6 {[%clk 0:02:59]} 3. Nxe5 {[%clk 0:02:59]}  d6 {[%clk 0:02:58]} 4. Nf3 {[%clk 0:03:00]}  Nxe4 {[%clk 0:02:59]} 5. d4 {[%clk 0:03:00]}  d5 {[%clk 0:02:59]} 6. Bd3 {[%clk 0:03:01]}  Bd6 {[%clk 0:02:59]} 7. O-O {[%clk 0:02:59]}  O-O {[%clk 0:02:53]} 8. c4 {[%clk 0:02:58]}  c6 {[%clk 0:02:53]} 9. Re1 {[%clk 0:02:43]}  Bf5 {[%clk 0:02:53]} 10. Qb3 {[%clk 0:02:43]}  Qd7 {[%clk 0:02:50]} 11. Nc3 {[%clk 0:02:35]}  Nxc3 {[%clk 0:02:49]} 12. Bxf5 {[%clk 0:02:32]}  Qxf5 {[%clk 0:02:50]} 13. Qxb7 {[%clk 0:02:25]}  Qd7 {[%clk 0:02:49]} 14. Qxd7 {[%clk 0:02:22]}  Nxd7 {[%clk 0:02:50]} 15. c5 {[%clk 0:02:13]}  Bxh2+ {[%clk 0:02:50]} 16. Nxh2 {[%clk 0:02:09]}  Ne4 {[%clk 0:02:50]} 17. Bf4 {[%clk 0:02:05]}  Rfe8 {[%clk 0:02:48]} 18. f3 {[%clk 0:01:59]}  Nef6 {[%clk 0:02:47]} 19. Kf2 {[%clk 0:01:53]}  Nf8 {[%clk 0:02:39]} 20. Rxe8 {[%clk 0:01:47]}  Nxe8 {[%clk 0:02:36]} 21. Ke3 {[%clk 0:01:19]}  Ne6 {[%clk 0:02:31]} 22. Bg3 {[%clk 0:01:19]}  f5 {[%clk 0:02:29]} 23. Be5 {[%clk 0:01:17]}  Kf7 {[%clk 0:02:26]} 24. Nf1 {[%clk 0:01:10]}  Nf6 {[%clk 0:02:16]} 25. b4 {[%clk 0:01:01]}  Nd7 {[%clk 0:02:10]} 26. Bd6 {[%clk 0:01:02]}  a6 {[%clk 0:02:09]} 27. Kd3 {[%clk 0:01:00]}  f4 {[%clk 0:01:59]} 28. Nd2 {[%clk 0:00:56]}  a5 {[%clk 0:01:58]} 29. Rb1 {[%clk 0:00:51]}  axb4 {[%clk 0:01:56]} 30. Rxb4 {[%clk 0:00:52]}  Rxa2 {[%clk 0:01:55]} 31. Rb7 {[%clk 0:00:52]}  Ke8 {[%clk 0:01:56]} 32. Nb3 {[%clk 0:00:24]}  g5 {[%clk 0:01:53]} 33. Kc3 {[%clk 0:00:08]}  h5 {[%clk 0:01:52]} 34. Kb4 {[%clk 0:00:08]}  Rb2 {[%clk 0:01:50]} 35. Ka3 {[%clk 0:00:08]}  Rxg2 {[%clk 0:01:49]} 36. Na5 {[%clk 0:00:09]}  Nxd4 {[%clk 0:01:48]} 37. Rc7 {[%clk 0:00:05]}  Nb5+ {[%clk 0:01:48]} 0-1


[Site "https://www.chess.com"]

[Event "Titled Tuesday Blitz October 31 Early 2023"]
[White "Karamsetty, Jeevan"]
[Black "Zhigalko, Sergei"]
[WhiteFideId "2025337"]
[BlackFideId "13502956"]
[WhiteElo "2618"]
[BlackElo "2946"]
[Result "0-1"]
[Round "6"]
[TimeControl "180+1"]
[Date "2023.10.31"]
[WhiteClock "0:00:17"]
[BlackClock "0:00:22"]
[Board "42"]

1. e4 {[%clk 0:03:00]}  c5 {[%clk 0:02:59]} 2. Nc3 {[%clk 0:02:59]}  Nc6 {[%clk 0:03:00]} 3. Bb5 {[%clk 0:02:59]}  Nd4 {[%clk 0:02:59]} 4. Bc4 {[%clk 0:03:00]}  e6 {[%clk 0:03:00]} 5. Nge2 {[%clk 0:03:00]}  Nf6 {[%clk 0:03:00]} 6. O-O {[%clk 0:02:58]}  a6 {[%clk 0:03:00]} 7. a4 {[%clk 0:02:59]}  Qc7 {[%clk 0:02:34]} 8. d3 {[%clk 0:02:55]}  Be7 {[%clk 0:02:34]} 9. Bf4 {[%clk 0:02:42]}  d6 {[%clk 0:02:26]} 10. Nxd4 {[%clk 0:02:34]}  cxd4 {[%clk 0:02:26]} 11. Ne2 {[%clk 0:02:35]}  Nxe4 {[%clk 0:02:26]} 12. dxe4 {[%clk 0:02:28]}  Qxc4 {[%clk 0:02:26]} 13. b3 {[%clk 0:02:25]}  Qc5 {[%clk 0:02:21]} 14. Bg3 {[%clk 0:02:13]}  e5 {[%clk 0:02:16]} 15. Kh1 {[%clk 0:02:10]}  Qc6 {[%clk 0:02:13]} 16. Qd3 {[%clk 0:02:06]}  f5 {[%clk 0:02:06]} 17. f3 {[%clk 0:01:42]}  O-O {[%clk 0:01:55]} 18. Bf2 {[%clk 0:01:31]}  fxe4 {[%clk 0:01:42]} 19. fxe4 {[%clk 0:01:32]}  Be6 {[%clk 0:01:42]} 20. Ng3 {[%clk 0:01:29]}  Rac8 {[%clk 0:01:40]} 21. Rac1 {[%clk 0:01:26]}  Bg5 {[%clk 0:01:37]} 22. Nf5 {[%clk 0:01:07]}  Bxf5 {[%clk 0:01:25]} 23. exf5 {[%clk 0:01:08]}  Bxc1 {[%clk 0:01:25]} 24. Rxc1 {[%clk 0:01:09]}  g6 {[%clk 0:01:04]} 25. fxg6 {[%clk 0:00:41]}  Rxf2 {[%clk 0:00:58]} 26. gxh7+ {[%clk 0:00:41]}  Kh8 {[%clk 0:00:56]} 27. Qg6 {[%clk 0:00:17]}  Qxc2 {[%clk 0:00:22]} 0-1


[Site "https://www.chess.com"]

[Event "Titled Tuesday Blitz October 31 Early 2023"]
[White "Xu, Xiangyu"]
[Black "Ginzburg, Yakov"]
[WhiteFideId "8608288"]
[BlackFideId "4157176"]
[WhiteElo "2910"]
[BlackElo "2613"]
[Result "1-0"]
[Round "6"]
[TimeControl "180+1"]
[Date "2023.10.31"]
[WhiteClock "0:01:47"]
[BlackClock "0:00:01"]
[Board "44"]

1. d4 {[%clk 0:03:00]}  d5 {[%clk 0:02:59]} 2. c4 {[%clk 0:03:01]}  c6 {[%clk 0:02:59]} 3. Nf3 {[%clk 0:02:59]}  Nf6 {[%clk 0:02:59]} 4. Nc3 {[%clk 0:03:00]}  dxc4 {[%clk 0:02:59]} 5. a4 {[%clk 0:03:01]}  Bf5 {[%clk 0:02:58]} 6. Nh4 {[%clk 0:03:01]}  Bc8 {[%clk 0:02:53]} 7. e3 {[%clk 0:02:56]}  e6 {[%clk 0:02:47]} 8. Bxc4 {[%clk 0:02:57]}  Bb4 {[%clk 0:02:47]} 9. O-O {[%clk 0:02:57]}  O-O {[%clk 0:02:46]} 10. Nf3 {[%clk 0:02:52]}  Nbd7 {[%clk 0:02:41]} 11. Qe2 {[%clk 0:02:49]}  c5 {[%clk 0:02:40]} 12. Na2 {[%clk 0:02:43]}  Ba5 {[%clk 0:01:59]} 13. dxc5 {[%clk 0:02:43]}  Bc7 {[%clk 0:01:59]} 14. b4 {[%clk 0:02:35]}  a5 {[%clk 0:01:59]} 15. Ba3 {[%clk 0:02:34]}  axb4 {[%clk 0:01:58]} 16. Bxb4 {[%clk 0:02:35]}  Re8 {[%clk 0:01:52]} 17. Rfd1 {[%clk 0:02:35]}  Rxa4 {[%clk 0:01:49]} 18. Bb5 {[%clk 0:02:32]}  Ra7 {[%clk 0:01:44]} 19. Nc3 {[%clk 0:02:30]}  Rxa1 {[%clk 0:01:41]} 20. Rxa1 {[%clk 0:02:31]}  Qe7 {[%clk 0:01:36]} 21. Qc4 {[%clk 0:02:23]}  Nd5 {[%clk 0:01:27]} 22. Nxd5 {[%clk 0:02:22]}  exd5 {[%clk 0:01:27]} 23. Qd4 {[%clk 0:02:14]}  Qe4 {[%clk 0:01:02]} 24. Qxe4 {[%clk 0:01:54]}  dxe4 {[%clk 0:00:54]} 25. Nd4 {[%clk 0:01:55]}  Rd8 {[%clk 0:00:51]} 26. c6 {[%clk 0:01:49]}  Ne5 {[%clk 0:00:23]} 27. Be7 {[%clk 0:01:48]}  Rd5 {[%clk 0:00:15]} 28. Ra8 {[%clk 0:01:47]}  h6 {[%clk 0:00:10]} 29. Rxc8+ {[%clk 0:01:47]}  Kh7 {[%clk 0:00:01]} 30. cxb7 {[%clk 0:01:47]} 1-0


[Site "https://www.chess.com"]